Department,Entity,Posted Date,Internal Voucher Number, Invoice Line Amount Net GBP ,Supplier Name,Account Code
FCO,FCO,01/04/2017,9075861,"-92,372.08",KNIGHT FRANK UNITED GARDENS,Multiple Accounts
FCO,FCO,01/04/2017,9057166,"-44,697.99",NELSON WORLDWIDE INC,Assets Under Construction (Oracle PA Control Account)
FCO,FCO,01/04/2017,9052253,"-36,397.33",ACCOMODATION PROVIDER,Rental Payments - residential
FCO,FCO,01/04/2017,9064024,"-35,366.22",CARBON TRUST,Programme Spend (Oracle Projects Control Account)
FCO,FCO,01/04/2017,9090898,"-34,742.66",STEPHANIE BUNKER AND SHAHRUKH RAFI KHAN,Recharge Suspense Account (Oracle PA Control Account)
FCO,FCO,01/04/2017,9092464,"28,015.69",SALIM NAKAT,Travel Package Advance Overseas Posting (Credit Card Payments Only)
FCO,FCO,01/04/2017,9090387,"31,557.85",SCHOOL,Multiple Accounts
FCO,FCO,01/04/2017,9090404,"32,209.57",SCHOOL,Multiple Accounts
FCO,FCO,01/04/2017,9092945,"32,784.58",THE ROYAL BANK OF SCOTLAND,Multiple Accounts
FCO,FCO,01/04/2017,9090406,"34,759.53",SCHOOL,Multiple Accounts
FCO,FCO,01/04/2017,9093121,"40,508.68",CARNEGIE ENDOWNMENT FOR INTERNATIONAL PEACE,Programme Spend (Oracle Projects Control Account)
FCO,FCO,01/04/2017,9060006,"45,739.66",OROSTREAM INTERNATIONAL CONTRACTS LTD,Multiple Accounts
FCO,FCO,01/04/2017,9061916,"66,686.40",FCO SERVICES,Assets Under Construction (Oracle PA Control Account)
FCO,FCO,01/04/2017,9055439,"76,602.69",MAYORS OFFICE FOR POLICING AND CRIME MOPC,Programme Spend (Oracle Projects Control Account)
FCO,FCO,01/04/2017,9042364,"103,390.96",FLEXIFORM BUSINESS FURNITURE LTD,"Purchase of Furniture, Fittings and Domestic Appliances"
FCO,FCO,01/04/2017,9073026,"111,319.25",AECOM,Assets Under Construction (Oracle PA Control Account)
FCO,FCO,01/04/2017,9093115,"292,857.74",BBC MEDIA ACTION,Programme Spend (Oracle Projects Control Account)
FCO,FCO,01/04/2017,9093101,"482,000.00",EUROPEAN ENDOWMENT FOR DEMOCRACY,Programme Spend (Oracle Projects Control Account)
FCO,FCO,01/04/2017,9105365,"1,347,082.23",THE ROYAL BANK OF SCOTLAND,Travel Package Advance Overseas Posting (Credit Card Payments Only)
FCO,FCO,01/04/2017,9120776,"1,619,577.09",THE ROYAL BANK OF SCOTLAND,Corporate Credit Card Clearing Account
FCO,FCO,01/04/2017,9095247,"-227,729.05",HALO PROJECT,Programme Spend (Oracle Projects Control Account)
FCO,FCO,01/04/2017,9095206,"-34,976.00",WESTMINSTER FOUNDATION FOR DEMOCRACY,Programme Spend (Oracle Projects Control Account)
FCO,FCO,01/04/2017,9094800,"25,537.81",CATHOLIC RELIEF SERVICES,Programme Spend (Oracle Projects Control Account)
FCO,FCO,01/04/2017,9094893,"25,988.93",SCHOOL,Multiple Accounts
FCO,FCO,01/04/2017,9120822,"26,026.95",THE ROYAL BANK OF SCOTLAND,Travel Package Advance Overseas Posting (Credit Card Payments Only)
FCO,FCO,01/04/2017,9095221,"27,140.20",ECQ EMPLOYEE EXPENSES,Recharge Suspense Account (Oracle PA Control Account)
FCO,FCO,01/04/2017,9094873,"27,732.46",RAND EUROPE,Programme Spend (Oracle Projects Control Account)
FCO,FCO,01/04/2017,9094916,"29,160.00",UK INDIA BUSINESS COUNCIL INDIA PVT LTD,Programme Spend (Oracle Projects Control Account)
FCO,FCO,01/04/2017,9095346,"32,031.71",ONE SANSOME PROPERTY LLC,Multiple Accounts
FCO,FCO,01/04/2017,9094683,"32,568.24",SCHOOL,Rental Payments - residential
FCO,FCO,01/04/2017,9094816,"33,052.07",KPMG ADVISORY HONG KONG LIMITED,Programme Spend (Oracle Projects Control Account)
FCO,FCO,01/04/2017,9094698,"37,220.84",ACCOMODATION PROVIDER,Rental Payments - residential
FCO,FCO,01/04/2017,9094900,"46,066.67", SCHOOL,Multiple Accounts
FCO,FCO,01/04/2017,9120776,"46,580.18",THE ROYAL BANK OF SCOTLAND,Corporate Credit Card Clearing Account
FCO,FCO,01/04/2017,9095019,"47,197.50",HOOTSUITE,Licences
FCO,FCO,01/04/2017,9094928,"50,547.00",PRICEWATERHOUSE COOPERS PRIVATE LIMITED,Programme Spend (Oracle Projects Control Account)
FCO,FCO,01/04/2017,9095198,"50,722.03",BRITISH COUNCIL,British Council Funding Transfer
FCO,FCO,01/04/2017,9094824,"82,000.00",VODAFONE LTD,Information Systems Under 3000 (non-capitalised)
FCO,FCO,01/04/2017,9094832,"104,519.46",EUROPEAN ENDOWMENT FOR DEMOCRACY,Programme Spend (Oracle Projects Control Account)
FCO,FCO,01/04/2017,9094911,"111,902.00",AKTIS STRATEGY,Programme Spend (Oracle Projects Control Account)
FCO,FCO,01/04/2017,9095088,"113,200.00",ICF CONSULTING SERVICES LIMITED,Programme Spend (Oracle Projects Control Account)
FCO,FCO,01/04/2017,9094881,"177,101.62",DULWICH COLLEGE,Multiple Accounts
FCO,FCO,01/04/2017,9095299,"450,837.84",OROSTREAM INTERNATIONAL CONTRACTS LTD,Assets Under Construction (Oracle PA Control Account)
FCO,FCO,01/04/2017,9095229,"1,319,358.52",UNITED NATIONS,Programme Spend (Oracle Projects Control Account)
FCO,FCO,01/04/2017,9095238,"1,836,354.88",UNITED NATIONS,Programme Spend (Oracle Projects Control Account)
FCO,FCO,01/04/2017,9095219,"6,799,543.31",INTERNATIONAL CRIMINAL COURT,Programme Spend (Oracle Projects Control Account)
FCO,FCO,01/04/2017,9096800,"-111,319.25",AECOM,Assets Under Construction (Oracle PA Control Account)
FCO,FCO,01/04/2017,9096272,"25,203.43",ADAM SMITH INTERNATIONAL,Programme Spend (Oracle Projects Control Account)
FCO,FCO,01/04/2017,9096282,"27,708.05",RICARDO AEA LTD,Programme Spend (Oracle Projects Control Account)
FCO,FCO,01/04/2017,9096294,"27,746.00",FORUM FOR THE FUTURE,Programme Spend (Oracle Projects Control Account)
FCO,FCO,01/04/2017,9096126,"31,593.05",NAJMI SONS AND BROTHERS LTD,Fuel Oil Residential
FCO,FCO,01/04/2017,9096345,"32,404.38",TODD RESEARCH LTD,Estates - Other Machinery and Equipment
FCO,FCO,01/04/2017,9096412,"32,500.00",FCO SERVICES,Unscheduled repairs to building infrastructure
FCO,FCO,01/04/2017,9096129,"33,251.70",EAST & WEST INTERNATIONAL GROUP LLC,Rental Payments - residential
FCO,FCO,01/04/2017,9096451,"33,427.83",THE ROYAL BANK OF SCOTLAND,Multiple Accounts
FCO,FCO,01/04/2017,9095989,"35,187.05",ACCOMODATION PROVIDER,Rental Payments - residential
FCO,FCO,01/04/2017,9096466,"35,262.97",HYUNDAI MOTORS NIG LTD,Recharge Suspense Account (Oracle PA Control Account)
FCO,FCO,01/04/2017,9096419,"37,007.20",THE ROYAL BANK OF SCOTLAND,Multiple Accounts
FCO,FCO,01/04/2017,9096600,"39,547.15",ZEF PALI AND GJERGJ PALI,Rental Payments - non residential
FCO,FCO,01/04/2017,9120822,"41,481.75",THE ROYAL BANK OF SCOTLAND,Travel Package Advance Overseas Posting (Credit Card Payments Only)
FCO,FCO,01/04/2017,9120776,"41,889.20",THE ROYAL BANK OF SCOTLAND,Corporate Credit Card Clearing Account
FCO,FCO,01/04/2017,9096362,"43,599.00",GENDER PERSPECTIVES,Programme Spend (Oracle Projects Control Account)
FCO,FCO,01/04/2017,9096588,"44,589.21",HAYS SPECIALIST RECRUITMENT LTD,IT/IS Consultancy
FCO,FCO,01/04/2017,9095996,"45,750.62",SCHOOL,Schooling for Children at Post
FCO,FCO,01/04/2017,9095993,"48,697.27",SCHOOL,Recharge Suspense Account (Oracle PA Control Account)
FCO,FCO,01/04/2017,9096405,"50,000.00",FCO SERVICES,Security: Works Residential
FCO,FCO,01/04/2017,9096615,"60,084.02",JLT SERVICES,Multiple Accounts
FCO,FCO,01/04/2017,9096127,"65,447.79",INTERNATIONAL CAPITAL TRADING,Rental Payments - residential
FCO,FCO,01/04/2017,9096500,"67,958.80",BAE SYSTEMS APPLIED INTELLIGENCE LIMITED,IT/IS Consultancy
FCO,FCO,01/04/2017,9096440,"90,168.17",TEARFUND,Programme Spend (Oracle Projects Control Account)
FCO,FCO,01/04/2017,9096788,"111,319.25",AECOM,Assets Under Construction (Oracle PA Control Account)
FCO,FCO,01/04/2017,9096515,"164,613.00",MEDIA DIVERSITY INSTITUTE,Programme Spend (Oracle Projects Control Account)
FCO,FCO,01/04/2017,9096429,"188,000.00",FCO SERVICES,Assets Under Construction (Oracle PA Control Account)
FCO,FCO,01/04/2017,9096240,"200,000.00",THE WORLD BANK,Programme Spend (Oracle Projects Control Account)
FCO,FCO,01/04/2017,9096452,"206,808.28",FCO SERVICES,Air Freight Dip Bags - Freight & Clearance Charges
FCO,FCO,01/04/2017,9098069,"-40,134.00",COMPUTACENTER UK LTD,IT/IS Consultancy
FCO,FCO,01/04/2017,9097880,"27,682.55",SHANGRI LA HOTEL DOHA,Business Hospitality (former DEE)
FCO,FCO,01/04/2017,9098302,"32,566.00",WESTMINSTER FOUNDATION FOR DEMOCRACY,Programme Spend (Oracle Projects Control Account)
FCO,FCO,01/04/2017,9098145,"32,572.11",AETNA,Multiple Accounts
FCO,FCO,01/04/2017,9098138,"34,902.64",CHARITIES AID FOUNDATION CAF RUSSIA,Programme Spend (Oracle Projects Control Account)
FCO,FCO,01/04/2017,9097570,"37,220.84",ACCOMODATION PROVIDER,Rental Payments - residential
FCO,FCO,01/04/2017,9098241,"37,426.40",DX NETWORK SERVICES,Postal Services
FCO,FCO,01/04/2017,9098076,"40,132.00",COMPUTACENTER UK LTD,IT/IS Consultancy
FCO,FCO,01/04/2017,9098368,"40,684.00",IIZUKA,Information Systems Maintenance
FCO,FCO,01/04/2017,9097542,"40,860.51",MINISTRY OF FINANCE,Rental Payments - non residential
FCO,FCO,01/04/2017,9098134,"42,072.79",ACCOMODATION PROVIDER,Rental Payments - residential
FCO,FCO,01/04/2017,9098079,"44,984.72",KPMG ADVISORY HONG KONG LIMITED,Programme Spend (Oracle Projects Control Account)
FCO,FCO,01/04/2017,9098122,"49,853.03",FCO SERVICES,Air Freight Dip Bags - Freight & Clearance Charges
FCO,FCO,01/04/2017,9098221,"59,032.36",EVOLVE SECURE SOLUTIONS,IT/IS Consultancy
FCO,FCO,01/04/2017,9098209,"82,867.00",THE ASIA FOUNDATION,Programme Spend (Oracle Projects Control Account)
FCO,FCO,01/04/2017,9098407,"185,370.00",CONTROL RISKS GROUP,UK Mobile Guarding Contract overseas
FCO,FCO,01/04/2017,9098214,"280,390.21",DAI EUROPE LIMITED,Programme Spend (Oracle Projects Control Account)
FCO,FCO,01/04/2017,9098048,"350,000.00",COMPUTACENTER UK LTD,Assets Under Construction (Oracle PA Control Account)
FCO,FCO,01/04/2017,9098321,"814,456.05",INCOSTRAT,Programme Spend (Oracle Projects Control Account)
FCO,FCO,01/04/2017,9053089,"-40,901.44",ALBERT PALI,Rental Payments - non residential
FCO,FCO,01/04/2017,9099913,"26,219.80",BAE SYSTEMS APPLIED INTELLIGENCE LIMITED,Specialist Contractors
FCO,FCO,01/04/2017,9100722,"26,361.57",TRANQUILIDADE,Multiple Accounts
FCO,FCO,01/04/2017,9099701,"26,836.28",GOVERNMENT LEGAL DEPARTMENT,Multiple Accounts
FCO,FCO,01/04/2017,9100337,"29,192.63",COMPUTACENTER UK LTD,IT/IS Consultancy
FCO,FCO,01/04/2017,9100485,"32,568.24",ACCOMODATION PROVIDER,Rental Payments - residential
FCO,FCO,01/04/2017,9099386,"32,955.96",DIPLOMAT FREIGHT SERVICES LTD(DFS),Multiple Accounts
FCO,FCO,01/04/2017,9100345,"35,730.00",POWER ELECTRICS GENERATORS LTD,Assets Under Construction (Oracle PA Control Account)
FCO,FCO,01/04/2017,9100754,"35,801.33",SCHOOL,Schooling for Children at Post
FCO,FCO,01/04/2017,9099663,"39,641.00",IHS GLOBAL PTE LTD,Programme Spend (Oracle Projects Control Account)
FCO,FCO,01/04/2017,9099988,"40,684.00",IIZUKA,Information Systems Maintenance
FCO,FCO,01/04/2017,9100439,"40,936.55",PICKFORDS MOVE MANAGEMENT LTD,Personal Car Freight
FCO,FCO,01/04/2017,9099374,"43,469.52",AMANA TAKAFUL PLC,Subsidy To Local Medical Schemes
FCO,FCO,01/04/2017,9099463,"56,888.53",ACCOMODATION PROVIDER,Rental Payments - residential
FCO,FCO,01/04/2017,9099937,"71,227.76",PENAL REFORM INTERNATIONAL,Programme Spend (Oracle Projects Control Account)
FCO,FCO,01/04/2017,9100104,"73,675.13",RISK ADVISORY GROUP PLC,Programme Spend (Oracle Projects Control Account)
FCO,FCO,01/04/2017,9099715,"88,738.62",BRITISH COUNCIL,British Council Funding Transfer
FCO,FCO,01/04/2017,9099972,"98,227.27",HEALIX INTERNATIONAL LTD,FCO Healthcare Scheme
FCO,FCO,01/04/2017,9099702,"101,295.00",COFFEY INTERNATIONAL DEVELOPMENT,Programme Spend (Oracle Projects Control Account)
FCO,FCO,01/04/2017,9099703,"112,450.61",COFFEY INTERNATIONAL DEVELOPMENT,Programme Spend (Oracle Projects Control Account)
FCO,FCO,01/04/2017,9099365,"121,510.69",BUPA INTERNATIONAL,Multiple Accounts
FCO,FCO,01/04/2017,9099700,"139,777.14",COFFEY INTERNATIONAL DEVELOPMENT,Programme Spend (Oracle Projects Control Account)
FCO,FCO,01/04/2017,9100239,"166,465.00",M INTEGRATED SOLUTIONS,Miscellaneous Expenditure: inc subscriptions and equipment maintenance
FCO,FCO,01/04/2017,9100253,"169,168.15",RISK ADVISORY GROUP PLC,Programme Spend (Oracle Projects Control Account)
FCO,FCO,01/04/2017,9099694,"467,488.92",GOVERNMENT LEGAL DEPARTMENT,Multiple Accounts
FCO,FCO,01/04/2017,9099959,"628,194.65",RISK ADVISORY GROUP PLC,Programme Spend (Oracle Projects Control Account)
FCO,FCO,01/04/2017,9102816,"-61,559.18",DANISH REFUGEE COUNCIL,Programme Spend (Oracle Projects Control Account)
FCO,FCO,01/04/2017,9101891,"27,164.68",NORTEL SECURITY ZAO OP,Local Guards
FCO,FCO,01/04/2017,9102333,"30,994.91",COMMONWEALTH PARLIAMENTARY ASSOCIATION,Programme Spend (Oracle Projects Control Account)
FCO,FCO,01/04/2017,9102599,"31,900.77",LANGUAGE SERVICES DIRECT,Language Tuition: Essential
FCO,FCO,01/04/2017,9102300,"32,591.44",FCO SERVICES,Air Freight Dip Bags - Freight & Clearance Charges
FCO,FCO,01/04/2017,9101811,"39,399.45",ZHEJIANG UNIVERSITY,Programme Spend (Oracle Projects Control Account)
FCO,FCO,01/04/2017,9102369,"50,000.00",FCO SERVICES,Assets Under Construction (Oracle PA Control Account)
FCO,FCO,01/04/2017,9102961,"50,851.06",VODAFONE LTD,Multiple Accounts
FCO,FCO,01/04/2017,9102525,"51,094.99",WORX O SEVEN,Assets Under Construction (Oracle PA Control Account)
FCO,FCO,01/04/2017,9102547,"51,094.99",WORX O SEVEN,Security: Works Residential
FCO,FCO,01/04/2017,9102288,"60,510.00",NORWEGIAN REFUGEE COUNCIL SOMALIA,Programme Spend (Oracle Projects Control Account)
FCO,FCO,01/04/2017,9102346,"62,546.22",COMPUTACENTER UK LTD,Information Systems Maintenance
FCO,FCO,01/04/2017,9102408,"65,421.33",FCO SERVICES,Security: Works Non-Residential
FCO,FCO,01/04/2017,9103006,"66,699.71",VOYA FINANCIAL,Multiple Accounts
FCO,FCO,01/04/2017,9102372,"70,000.00",FCO SERVICES,Assets Under Construction (Oracle PA Control Account)
FCO,FCO,01/04/2017,9102589,"73,344.50",CAPITA PROPERTY AND INFRASTRUCTURE LTD,Assets Under Construction (Oracle PA Control Account)
FCO,FCO,01/04/2017,9102711,"75,022.78",LANGUAGE SERVICES DIRECT,Language Tuition: Essential
FCO,FCO,01/04/2017,9102366,"81,198.49",FCO SERVICES,Assets Under Construction (Oracle PA Control Account)
FCO,FCO,01/04/2017,9102497,"84,929.44",INDEPENDENT DIPLOMATS,Programme Spend (Oracle Projects Control Account)
FCO,FCO,01/04/2017,9102528,"89,724.00",FCO SERVICES,IT/IS Consultancy
FCO,FCO,01/04/2017,9102541,"101,609.93",FCO SERVICES,Travel Package
FCO,FCO,01/04/2017,9102555,"105,000.00",COMMISSION FOR JUSTICE AND ACCOUNTABILITY,Programme Spend (Oracle Projects Control Account)
FCO,FCO,01/04/2017,9102591,"113,671.38",LANGUAGE SERVICES DIRECT,Language Tuition: Essential
FCO,FCO,01/04/2017,9102342,"125,096.22",COMPUTACENTER UK LTD,Information Systems Maintenance
FCO,FCO,01/04/2017,9102601,"136,697.43",EUROPEAN ENDOWMENT FOR DEMOCRACY,Programme Spend (Oracle Projects Control Account)
FCO,FCO,01/04/2017,9102767,"140,000.00",GLOBAL PARTNERS GOVERNANCE PRACTICE LTD,Programme Spend (Oracle Projects Control Account)
FCO,FCO,01/04/2017,9102292,"141,877.75",MARCH,Programme Spend (Oracle Projects Control Account)
FCO,FCO,01/04/2017,9104460,"26,043.00",UNIVERSITY OF WARWICK,Programme Spend (Oracle Projects Control Account)
FCO,FCO,01/04/2017,9104108,"27,242.47",SCHOOL,Multiple Accounts
FCO,FCO,01/04/2017,9104115,"28,365.38",ACCOMODATION PROVIDER,Rental Payments - residential
FCO,FCO,01/04/2017,9104000,"29,482.60",SCHOOL,Schooling for Children at Post
FCO,FCO,01/04/2017,9104589,"31,017.37",BUR CASHBOX TOP UP,Interbank Transfers/Withdrawals
FCO,FCO,01/04/2017,9103994,"31,554.69",TEL AVIV MUNICIPALITY,Rental Payments - non residential
FCO,FCO,01/04/2017,9104120,"32,568.23",AMJAD HIDMI,Multiple Accounts
FCO,FCO,01/04/2017,9104897,"35,232.31",WESTMINSTER FOUNDATION FOR DEMOCRACY,Programme Spend (Oracle Projects Control Account)
FCO,FCO,01/04/2017,9103986,"36,287.53",PAGE GROUP ISRAEL LIMITED,Local Guards
FCO,FCO,01/04/2017,9105485,"38,473.16",COMPUTACENTER UK LTD,Information Systems Maintenance
FCO,FCO,01/04/2017,9104893,"48,377.66",CHP CASHBOX TOP UP,Interbank Transfers/Withdrawals
FCO,FCO,01/04/2017,9104479,"51,673.46",PENAL REFORM INTERNATIONAL,Programme Spend (Oracle Projects Control Account)
FCO,FCO,01/04/2017,9104850,"59,490.52",IISS - INTERNATIONAL INSTITUTE FOR STRATEGIC STUDIES,Programme Spend (Oracle Projects Control Account)
FCO,FCO,01/04/2017,9104898,"63,445.43",BMATT,Recharge Suspense Account (Oracle PA Control Account)
FCO,FCO,01/04/2017,9104321,"75,605.02",ADP,Multiple Accounts
FCO,FCO,01/04/2017,9104472,"95,459.17",KOIZA INTERNATIONAL LTD,Recharge Suspense Account (Oracle PA Control Account)
FCO,FCO,01/04/2017,9104106,"116,412.03",APEX HEALTH INSURANCE LIMITED,Multiple Accounts
FCO,FCO,01/04/2017,9104470,"149,230.00",STABILIZATION SUPPORT SERVICES,Programme Spend (Oracle Projects Control Account)
FCO,FCO,01/04/2017,9105179,"189,342.71",SECURITAS AS,Assets Under Construction (Oracle PA Control Account)
FCO,FCO,01/04/2017,9104859,"200,000.47",UNITED NATIONS,Programme Spend (Oracle Projects Control Account)
FCO,FCO,01/04/2017,9105073,"273,282.66",LONDON ENERGY,Electricity Non-Residential
FCO,FCO,01/04/2017,9106880,"-40,684.00",IIZUKA,Information Systems Maintenance
FCO,FCO,01/04/2017,9107036,"-40,684.00",IIZUKA,Information Systems Maintenance
FCO,FCO,01/04/2017,9105941,"28,870.92",Abdulsalam Al Rafi Group LLC,Rental Payments - residential
FCO,FCO,01/04/2017,9106561,"37,684.28",FINEPOINT BROADCAST LTD,Multiple Accounts
FCO,FCO,01/04/2017,9107068,"40,856.57",ADAM SMITH INTERNATIONAL,Programme Spend (Oracle Projects Control Account)
FCO,FCO,01/04/2017,9106715,"41,465.65",CONFEDERATION OF INDIAN INDUSTRY,Programme Spend (Oracle Projects Control Account)
FCO,FCO,01/04/2017,9107447,"43,950.00",CONFEDERATION OF INDIAN INDUSTRY,Programme Spend (Oracle Projects Control Account)
FCO,FCO,01/04/2017,9107473,"52,484.07",RANGER PROTECTION AND SECURITY COMPANY LTD,Local Guards
FCO,FCO,01/04/2017,9107058,"98,227.27",HEALIX INTERNATIONAL LTD,FCO Healthcare Scheme
FCO,FCO,01/04/2017,9107463,"100,178.27",H M EXCHEQUER,CFER Payments to The Exchequer (CSC Use Only)
FCO,FCO,01/04/2017,9107261,"509,281.14",BBC MEDIA ACTION,Programme Spend (Oracle Projects Control Account)
FCO,FCO,01/04/2017,9106914,"9,000,000.00",BBC  BRITISH BROADCASTING CORPORATION,Programme Spend (Oracle Projects Control Account)
FCO,FCO,01/04/2017,9109387,"-992,952.41",GARDA WORLD LTD,UK Mobile Guarding Contract overseas
FCO,FCO,01/04/2017,9108646,"-30,709.93",IND OTHER DEBTORS,Overseas Reclaimable Taxes
FCO,FCO,01/04/2017,9109338,"25,821.04",HEALIX INTERNATIONAL LTD,Hospital/Specialist Treatment
FCO,FCO,01/04/2017,9108939,"28,311.79",HARIS ENTERPRISES PVT LTD,Local Guards
FCO,FCO,01/04/2017,9109465,"32,836.66",RAND EUROPE,Programme Spend (Oracle Projects Control Account)
FCO,FCO,01/04/2017,9109466,"33,304.31",TODD RESEARCH LTD,Estates - Other Machinery and Equipment
FCO,FCO,01/04/2017,9108779,"33,431.35",BRITISH EMBASSY,Interpost Fundings
FCO,FCO,01/04/2017,9109042,"33,990.56",SCHOOL,Recharge Suspense Account (Oracle PA Control Account)
FCO,FCO,01/04/2017,9109746,"39,668.70",WILLIS OF MARYLAND INC,Multiple Accounts
FCO,FCO,01/04/2017,9109020,"44,242.00",PRICEWATERHOUSE COOPERS PRIVATE LIMITED,Programme Spend (Oracle Projects Control Account)
FCO,FCO,01/04/2017,9109002,"47,707.94",TNT EXPRESS,Specialist Contractors
FCO,FCO,01/04/2017,9109041,"53,685.00",CAPGEMINI UK PLC,Assets Under Construction (Oracle PA Control Account)
FCO,FCO,01/04/2017,9109043,"56,710.00",ABDUL RAZAK LABABIDI,Dilapidations Non-Residential
FCO,FCO,01/04/2017,9108777,"58,085.50",CHP CASHBOX TOP UP,Interbank Transfers/Withdrawals
FCO,FCO,01/04/2017,9109091,"59,792.00",INTERNATIONAL ENERGY AGENCY,Programme Spend (Oracle Projects Control Account)
FCO,FCO,01/04/2017,9109756,"72,640.18",WILLIS OF MARYLAND INC,Multiple Accounts
FCO,FCO,01/04/2017,9109409,"92,561.67",INCLUSIVE SECURITY ACTION,Programme Spend (Oracle Projects Control Account)
FCO,FCO,01/04/2017,9108772,"96,082.42",SCHOOL,Multiple Accounts
FCO,FCO,01/04/2017,9109391,"132,624.84",UNESCO,Programme Spend (Oracle Projects Control Account)
FCO,FCO,01/04/2017,9109116,"141,202.59",BAE SYSTEMS APPLIED INTELLIGENCE LIMITED,Information Systems Maintenance
FCO,FCO,01/04/2017,9109432,"188,891.01",OROSTREAM INTERNATIONAL CONTRACTS LTD,Assets Under Construction (Oracle PA Control Account)
FCO,FCO,01/04/2017,9109496,"244,955.90",DEFENCE BUSINESS SERVICES FINANCE,Mod Guarding Services Residential
FCO,FCO,01/04/2017,9109346,"384,259.85",FCO SERVICES,Residential Property Services
FCO,FCO,01/04/2017,9109382,"992,952.41",GARDA WORLD LTD,UK Mobile Guarding Contract overseas
FCO,FCO,01/04/2017,9109337,"1,102,417.73",EUROPEAN MEDICINES AGENCY,Protocol - General VAT Refunds to Other Organisations
FCO,FCO,01/04/2017,9109146,"1,403,695.39",EUROPEAN BANK FOR CONSTRUCTION AND DEVELOPMENT,Protocol - General VAT Refunds to Other Organisations
FCO,FCO,01/04/2017,9110584,"34,571.34",UNITED NATIONS,Programme Spend (Oracle Projects Control Account)
FCO,FCO,01/04/2017,9111090,"37,086.76",SECURITAS SAC,Local Guards
FCO,FCO,01/04/2017,9110457,"38,589.90",OROSTREAM INTERNATIONAL CONTRACTS LTD,Assets Under Construction (Oracle PA Control Account)
FCO,FCO,01/04/2017,9110724,"40,078.50",ACCOMODATION PROVIDER,Rental Payments - residential
FCO,FCO,01/04/2017,9110439,"61,986.62",BRITISH COUNCIL,Programme Spend (Oracle Projects Control Account)
FCO,FCO,01/04/2017,9110603,"72,982.00",UNITED NATIONS,Programme Spend (Oracle Projects Control Account)
FCO,FCO,01/04/2017,9110765,"128,078.32",AFRICAN SKIES LTD,Local Guards
FCO,FCO,01/04/2017,9110421,"129,264.00",UNITED NATIONS,Programme Spend (Oracle Projects Control Account)
FCO,FCO,01/04/2017,9110608,"144,721.92",INSTITUTE FOR INTERNATIONAL CRIMINAL INVESTIGATIONS,Programme Spend (Oracle Projects Control Account)
FCO,FCO,01/04/2017,9110581,"294,826.71",GILBERT ASH LIMITED,Assets Under Construction (Oracle PA Control Account)
FCO,FCO,01/04/2017,9110435,"650,000.00",BIOT REVENUE ACCOUNT,Programme Spend (Oracle Projects Control Account)
FCO,FCO,01/04/2017,9110445,"795,243.71",FCO SERVICES,Residential Property Services
FCO,FCO,01/04/2017,9110443,"1,225,014.30",FCO SERVICES,Residential Property Services
FCO,FCO,01/04/2017,9110414,"3,533,691.47",CABINET OFFICE,Multiple Accounts
FCO,FCO,01/04/2017,9110440,"13,400,000.00",BRITISH COUNCIL,Programme Spend (Oracle Projects Control Account)
FCO,FCO,01/04/2017,9113044,"-38,218.30",PAK OTHER DEBTORS,Local Guards
FCO,FCO,01/04/2017,9112718,"25,110.00",NORTH HIGHLAND UK LTD,Specialist Contractors
FCO,FCO,01/04/2017,9112706,"26,062.34",UNHAS SOMALIA,Post - Air Travel
FCO,FCO,01/04/2017,9112727,"26,168.92",ALBANY ASSOCIATES,Programme Spend (Oracle Projects Control Account)
FCO,FCO,01/04/2017,9112877,"26,446.50",AVARN SECURITY OY,Local Guards
FCO,FCO,01/04/2017,9112811,"28,331.32",CARBON TRUST ADVISORY LTD,Programme Spend (Oracle Projects Control Account)
FCO,FCO,01/04/2017,9112703,"28,846.15",UNHAS SOMALIA,Post - Air Travel
FCO,FCO,01/04/2017,9113189,"31,050.31",CXA INSURANCE BROKERS SINGAPORE PTE LTD,Subsidy To Local Medical Schemes
FCO,FCO,01/04/2017,9112561,"35,959.34",THE CLUB,Business Hospitality (former DEE)
FCO,FCO,01/04/2017,9112565,"38,251.12",NAJMI SONS AND BROTHERS LTD,Fuel Oil Residential
FCO,FCO,01/04/2017,9112798,"46,419.00",THE CLIMATE GROUP,Programme Spend (Oracle Projects Control Account)
FCO,FCO,01/04/2017,9112906,"66,156.35",AGILE BYTE LIMITED,IT/IS Consultancy
FCO,FCO,01/04/2017,9112925,"90,256.09",GLOBAL PARTNERS GOVERNANCE PRACTICE LTD,Programme Spend (Oracle Projects Control Account)
FCO,FCO,01/04/2017,9112680,"101,560.00",NORTH HIGHLAND UK LTD,Specialist Contractors
FCO,FCO,01/04/2017,9112972,"109,150.00",SEARCH FOR COMMON GROUND,Programme Spend (Oracle Projects Control Account)
FCO,FCO,01/04/2017,9112745,"112,610.40",SYNERGY FOR JUSTICE LTD,Programme Spend (Oracle Projects Control Account)
FCO,FCO,01/04/2017,9112730,"125,166.51",AECOM,Assets Under Construction (Oracle PA Control Account)
FCO,FCO,01/04/2017,9113705,"167,409.15",SECUREX AGENCIES LTD,Staff and Other Advances AP Control (Oracle Ap Control Account)
FCO,FCO,01/04/2017,9113602,"501,348.16",ATHENA EUNAVFOR MED OHQ TPC,Programme Spend (Oracle Projects Control Account)
FCO,FCO,01/04/2017,9112768,"655,500.00",DYNASAFE BACTEC LTD,Programme Spend (Oracle Projects Control Account)
FCO,FCO,01/04/2017,9112820,"2,500,000.00",ISS FACILITY SERVICES LTD FCO OP - POE,FMCU POE Trust Account Debtor
FCO,FCO,01/04/2017,9114519,"25,026.06",BAE SYSTEMS APPLIED INTELLIGENCE LIMITED,Information Systems Maintenance
FCO,FCO,01/04/2017,9114752,"27,915.63",SIR RAPHAEL A O NWOSU,Recharge Suspense Account (Oracle PA Control Account)
FCO,FCO,01/04/2017,9114665,"31,019.04",PICKFORDS MOVE MANAGEMENT LTD,Heavy Baggage
FCO,FCO,01/04/2017,9114552,"32,631.90",RA INITERNATIONAL,Programme Spend (Oracle Projects Control Account)
FCO,FCO,01/04/2017,9114475,"32,727.84",SINVEST HARMINCAD 6 KFT,Multiple Accounts
FCO,FCO,01/04/2017,9114448,"33,368.07",ACCOMODATION PROVIDER,Rental Payments - residential
FCO,FCO,01/04/2017,9114713,"36,800.00",AGILE BYTE LIMITED,IT/IS Consultancy
FCO,FCO,01/04/2017,9114520,"37,277.00",UNITED NATIONS,Programme Spend (Oracle Projects Control Account)
FCO,FCO,01/04/2017,9114536,"50,938.92",SERVEST MULTI SERVICE GROUP,Manned Guarding Services
FCO,FCO,01/04/2017,9114641,"53,071.72",PICKFORDS MOVE MANAGEMENT LTD,Heavy Baggage
FCO,FCO,01/04/2017,9114535,"64,533.00",BAE SYSTEMS APPLIED INTELLIGENCE LIMITED,Information Systems Maintenance
FCO,FCO,01/04/2017,9114677,"66,067.32",FIRST ORGANISATION INC,Programme Spend (Oracle Projects Control Account)
FCO,FCO,01/04/2017,9114916,"71,593.05",HUMANIS,Overseas Tax And Social Security
FCO,FCO,01/04/2017,9114707,"72,702.06",CROWN COMMERCIAL SERVICE,Wdhs/Wsds
FCO,FCO,01/04/2017,9114305,"74,441.69",ACCOMODATION PROVIDER,Rental Payments - residential
FCO,FCO,01/04/2017,9114705,"75,967.82",CROWN COMMERCIAL SERVICE,Wdhs/Wsds
FCO,FCO,01/04/2017,9114742,"100,000.00",NATIONAL CRIME AGENCY KINGSTON,Recharge Suspense Account (Oracle PA Control Account)
FCO,FCO,01/04/2017,9114360,"145,777.53",RM JONES AND CO,Multiple Accounts
FCO,FCO,01/04/2017,9114531,"174,000.00",UNITED NATIONS,Programme Spend (Oracle Projects Control Account)
FCO,FCO,01/04/2017,9114579,"425,243.97",NORWEGIAN REFUGEE COUNCIL SOMALIA,Programme Spend (Oracle Projects Control Account)
FCO,FCO,01/04/2017,9114682,"489,500.00",WESTMINSTER FOUNDATION FOR DEMOCRACY,Programme Spend (Oracle Projects Control Account)
FCO,FCO,01/04/2017,9114485,"507,955.15",RISK ADVISORY GROUP PLC,Programme Spend (Oracle Projects Control Account)
FCO,FCO,01/04/2017,9116578,"26,002.04",INTERSERVE FM LTD,Construction Project more than 10k
FCO,FCO,01/04/2017,9115895,"28,397.76",CONFEDERATION OF INDIAN INDUSTRY,Programme Spend (Oracle Projects Control Account)
FCO,FCO,01/04/2017,9116025,"28,453.33",BAE SYSTEMS APPLIED INTELLIGENCE LIMITED,Information Systems Maintenance
FCO,FCO,01/04/2017,9116073,"30,463.27",HYDROGRAPHIC OFFICE,Programme Spend (Oracle Projects Control Account)
FCO,FCO,01/04/2017,9116577,"30,805.49",INTERSERVE FM LTD,Construction Project more than 10k
FCO,FCO,01/04/2017,9116069,"31,489.77",HYDROGRAPHIC OFFICE,Programme Spend (Oracle Projects Control Account)
FCO,FCO,01/04/2017,9115823,"31,962.43",PERSPEKTIVA ROOI,Programme Spend (Oracle Projects Control Account)
FCO,FCO,01/04/2017,9116072,"33,031.44",HYDROGRAPHIC OFFICE,Programme Spend (Oracle Projects Control Account)
FCO,FCO,01/04/2017,9116823,"33,036.57",AETNA,Multiple Accounts
FCO,FCO,01/04/2017,9116599,"33,992.56",INTERSERVE FM LTD,FM Interserve Works
FCO,FCO,01/04/2017,9116075,"34,642.65",HYDROGRAPHIC OFFICE,Programme Spend (Oracle Projects Control Account)
FCO,FCO,01/04/2017,9116082,"36,362.86",HYDROGRAPHIC OFFICE,Programme Spend (Oracle Projects Control Account)
FCO,FCO,01/04/2017,9116508,"37,935.32",INTERSERVE FM LTD,Multiple Accounts
FCO,FCO,01/04/2017,9116661,"38,337.45",INTERSERVE FM LTD,FM Interserve Works
FCO,FCO,01/04/2017,9116679,"40,038.20",INTERSERVE FM LTD,FM Interserve Works
FCO,FCO,01/04/2017,9116079,"41,774.29",HYDROGRAPHIC OFFICE,Programme Spend (Oracle Projects Control Account)
FCO,FCO,01/04/2017,9116029,"42,774.19",URSSAF,Multiple Accounts
FCO,FCO,01/04/2017,9116791,"43,217.99",NELSON WORLDWIDE INC,Assets Under Construction (Oracle PA Control Account)
FCO,FCO,01/04/2017,9116647,"43,483.53",INTERSERVE FM LTD,Multiple Accounts
FCO,FCO,01/04/2017,9115904,"44,732.09",BAE SYSTEMS APPLIED INTELLIGENCE LIMITED,Information Systems Maintenance
FCO,FCO,01/04/2017,9116664,"45,373.82",INTERSERVE FM LTD,FM Interserve Works
FCO,FCO,01/04/2017,9115878,"47,184.20",SCHOOL,Schooling for Children at Post
FCO,FCO,01/04/2017,9115930,"48,429.97",FCO SERVICES,Assets Under Construction (Oracle PA Control Account)
FCO,FCO,01/04/2017,9116092,"50,000.00",DSFA  DIPLOMATIC SERVICE FAMILIES ASSOCIATION,DSFA
FCO,FCO,01/04/2017,9116648,"50,734.25",INTERSERVE FM LTD,Construction Project more than 10k
FCO,FCO,01/04/2017,9116658,"54,042.47",INTERSERVE FM LTD,IT/IS Consultancy
FCO,FCO,01/04/2017,9116662,"55,053.15",INTERSERVE FM LTD,FM Interserve Works
FCO,FCO,01/04/2017,9116023,"60,483.36",AEGIS DEFENCE SERVICES LTD,Multiple Accounts
FCO,FCO,01/04/2017,9116076,"61,672.66",HYDROGRAPHIC OFFICE,Programme Spend (Oracle Projects Control Account)
FCO,FCO,01/04/2017,9116080,"62,027.41",HYDROGRAPHIC OFFICE,Programme Spend (Oracle Projects Control Account)
FCO,FCO,01/04/2017,9115915,"62,121.25",FCO SERVICES,IT/IS Consultancy
FCO,FCO,01/04/2017,9116610,"63,402.58",INTERSERVE FM LTD,FM Interserve Works
FCO,FCO,01/04/2017,9116646,"66,310.38",INTERSERVE FM LTD,Repair and maintenance of furniture and fittings
FCO,FCO,01/04/2017,9115808,"72,906.43",BUPA INTERNATIONAL,Multiple Accounts
FCO,FCO,01/04/2017,9116261,"95,818.14",FCO SERVICES,Customer Refund Account
FCO,FCO,01/04/2017,9116083,"110,000.00",PRICEWATERHOUSE COOPERS LLP,Programme Spend (Oracle Projects Control Account)
FCO,FCO,01/04/2017,9116317,"122,276.39",COMPUTACENTER UK LTD,Assets Under Construction (Oracle PA Control Account)
FCO,FCO,01/04/2017,9116101,"127,336.00",MOD MINISTRY OF DEFENCE,Crisis Overseas (CSC USE ONLY)
FCO,FCO,01/04/2017,9116663,"141,769.40",INTERSERVE FM LTD,Construction Project more than 10k
FCO,FCO,01/04/2017,9115921,"170,951.00",FCO SERVICES,Security: Works Residential
FCO,FCO,01/04/2017,9116062,"180,387.99",CAPGEMINI UK PLC,IT/IS Consultancy
FCO,FCO,01/04/2017,9116037,"196,531.20",DEFENCE BUSINESS SERVICES FINANCE,Customer Refund Account
FCO,FCO,01/04/2017,9116027,"331,583.00",NI CO OPERATION OVERSEAS NI CO LTD,Programme Spend (Oracle Projects Control Account)
FCO,FCO,01/04/2017,9116077,"564,270.06",HYDROGRAPHIC OFFICE,Programme Spend (Oracle Projects Control Account)
FCO,FCO,01/04/2017,9115887,"604,332.48",SCHOOL,Multiple Accounts
FCO,FCO,01/04/2017,9116067,"619,827.00",MOD MINISTRY OF DEFENCE,Programme Spend (Oracle Projects Control Account)
FCO,FCO,01/04/2017,9116652,"653,240.61",INTERSERVE FM LTD,Construction Project more than 10k
FCO,FCO,01/04/2017,9116055,"992,952.41",GARDA WORLD LTD,UK Mobile Guarding Contract overseas
FCO,FCO,01/04/2017,9116042,"3,308,796.53",UNITED NATIONS,Programme Spend (Oracle Projects Control Account)
FCO,FCO,01/04/2017,9116053,"14,286,228.29",UNITED NATIONS,Programme Spend (Oracle Projects Control Account)
FCO,FCO,01/04/2017,9118141,"25,017.10",DECC DEPARTMENT OF ENERGY AND CLIMATE CHANGE,Customer Refund Account
FCO,FCO,01/04/2017,9118109,"26,840.53",ISS FACILITY SERVICES LTD FCO OP - POE,Multiple Accounts
FCO,FCO,01/04/2017,9118125,"27,411.19",ISS FACILITY SERVICES LTD FCO OP - POE,Multiple Accounts
FCO,FCO,01/04/2017,9117455,"27,866.24",REAL ESTATE ASSET MANAGEMENT COMPANY,Rental Payments - residential
FCO,FCO,01/04/2017,9117622,"27,925.00",ATLANTIC COUNCIL DIGITAL FORENSIC RESEARCH LAB,Programme Spend (Oracle Projects Control Account)
FCO,FCO,01/04/2017,9117546,"28,608.04",COMPUTACENTER UK LTD,IT/IS Consultancy
FCO,FCO,01/04/2017,9117275,"30,978.89",ABUJA ELCTRCITY DISTRIBUTION COMPNY,Multiple Accounts
FCO,FCO,01/04/2017,9117615,"31,891.20",AUSWAERTIGES AMT,Rental Payments - non residential
FCO,FCO,01/04/2017,9118149,"32,768.35",DEFRA DEPT FOR ENVIRNMENT FOOD AND RURAL AFFAIRS,Customer Refund Account
FCO,FCO,01/04/2017,9117484,"32,834.64",DISCOVERY MEDICAL AID,Multiple Accounts
FCO,FCO,01/04/2017,9117640,"41,505.74",BARTON ENGINEERING AND EXPORT,Repairs And Refurbishment: Works Residential
FCO,FCO,01/04/2017,9117813,"49,284.00",CAPGEMINI UK PLC,Specialist Contractors
FCO,FCO,01/04/2017,9117787,"59,260.64",FIEDLER AND RANDEL STEUERBERATER,Multiple Accounts
FCO,FCO,01/04/2017,9118126,"67,518.06",ISS FACILITY SERVICES LTD FCO OP - POE,Multiple Accounts
FCO,FCO,01/04/2017,9118112,"76,958.84",ISS FACILITY SERVICES LTD FCO OP - POE,Multiple Accounts
FCO,FCO,01/04/2017,9118110,"102,937.78",ISS FACILITY SERVICES LTD FCO OP - POE,Multiple Accounts
FCO,FCO,01/04/2017,9117721,"109,548.12",UNIVERSITY OF OXFORD,Programme Spend (Oracle Projects Control Account)
FCO,FCO,01/04/2017,9117548,"127,946.65",ACCOMODATION PROVIDER,Rental Payments - residential
FCO,FCO,01/04/2017,9118114,"144,859.39",ISS FACILITY SERVICES LTD FCO OP - POE,Multiple Accounts
FCO,FCO,01/04/2017,9117596,"148,508.57",GREAT BRITAIN-CHINA CENTRE,Programme Spend (Oracle Projects Control Account)
FCO,FCO,01/04/2017,9117544,"159,225.78",AEGIS DEFENCE SERVICES LTD,Multiple Accounts
FCO,FCO,01/04/2017,9117801,"174,449.20",SERVEST MULTI SERVICE GROUP,Manned Guarding Services
FCO,FCO,01/04/2017,9117539,"186,059.00",AKTIS STRATEGY,Programme Spend (Oracle Projects Control Account)
FCO,FCO,01/04/2017,9117608,"227,321.50",VODAFONE LTD CABLE AND WIRELESS UK,Assets Under Construction (Oracle PA Control Account)
FCO,FCO,01/04/2017,9118167,"233,185.20",OSCAR DARIO JARAMILLO DUQUE,Assets Under Construction (Oracle PA Control Account)
FCO,FCO,01/04/2017,9117761,"295,679.84",FIEDLER AND RANDEL STEUERBERATER,Multiple Accounts
FCO,FCO,01/04/2017,9117750,"454,804.86",GILBERT ASH LIMITED,Assets Under Construction (Oracle PA Control Account)
FCO,FCO,01/04/2017,9117931,"682,894.67",MOD MINISTRY OF DEFENCE,Programme Spend (Oracle Projects Control Account)
FCO,FCO,01/04/2017,9117519,"725,760.00",UNITED NATIONS,Programme Spend (Oracle Projects Control Account)
FCO,FCO,01/04/2017,9117944,"4,279,844.80",THE SECRETARY GENERAL OF THE OSCE,Programme Spend (Oracle Projects Control Account)
FCO,FCO,01/04/2017,9113189,"-31,050.31",CXA INSURANCE BROKERS SINGAPORE PTE LTD,Subsidy To Local Medical Schemes
FCO,FCO,01/04/2017,9119236,"25,248.04",IKA,Multiple Accounts
FCO,FCO,01/04/2017,9119427,"29,509.61",IZIIS,Rental Payments - non residential
FCO,FCO,01/04/2017,9119599,"30,112.00",OXO,Programme Spend (Oracle Projects Control Account)
FCO,FCO,01/04/2017,9119135,"32,043.40",AETNA,Multiple Accounts
FCO,FCO,01/04/2017,9119018,"39,081.89",ROBERT MUSALLAM,Multiple Accounts
FCO,FCO,01/04/2017,9119238,"39,165.92",G4S SECURITY SERVICES KENYA LTD,Multiple Accounts
FCO,FCO,01/04/2017,9119334,"39,165.92",G4S SECURITY SERVICES KENYA LTD,Multiple Accounts
FCO,FCO,01/04/2017,9118961,"44,649.62",STANDARD BANK OF MALAWI,Multiple Accounts
FCO,FCO,01/04/2017,9119015,"46,526.05",ACCOMODATION PROVIDER,Rental Payments - residential
FCO,FCO,01/04/2017,9119246,"47,826.08",STUDIO EGA SRL,Multiple Accounts
FCO,FCO,01/04/2017,9119116,"48,676.33",COLLEGE OF POLICING,Programme Spend (Oracle Projects Control Account)
FCO,FCO,01/04/2017,9119242,"64,700.88",BERGHOF FOUNDATION FOR PEACE SUPPORT GEMEINN GMBH,Programme Spend (Oracle Projects Control Account)
FCO,FCO,01/04/2017,9119309,"81,961.00",DEFENCE BUSINESS SERVICES FINANCE,Misc Security Payments
FCO,FCO,01/04/2017,9119077,"100,000.00",FCO SERVICES,Assets Under Construction (Oracle PA Control Account)
FCO,FCO,01/04/2017,9119198,"111,312.71",GLOBAL PARTNERS GOVERNANCE PRACTICE LTD,Programme Spend (Oracle Projects Control Account)
FCO,FCO,01/04/2017,9119083,"141,910.86",FCO SERVICES,Assets Under Construction (Oracle PA Control Account)
FCO,FCO,01/04/2017,9119081,"146,714.89",FCO SERVICES,Assets Under Construction (Oracle PA Control Account)
FCO,FCO,01/04/2017,9119064,"169,696.00",Optima Defence and Security Group Ltd,Recharge Suspense Account (Oracle PA Control Account)
FCO,FCO,01/04/2017,9119158,"188,858.60",AKTIS STRATEGY,Programme Spend (Oracle Projects Control Account)
FCO,FCO,01/04/2017,9119132,"194,738.52",GARDA WORLD LTD,UK Guarding Contracts Overseas
FCO,FCO,01/04/2017,9119260,"547,198.29",WESTMINSTER FOUNDATION FOR DEMOCRACY,Programme Spend (Oracle Projects Control Account)
FCO,FCO,01/04/2017,9119160,"590,150.77",BAE SYSTEMS APPLIED INTELLIGENCE LIMITED,Information Systems Implementation
FCO,FCO,01/04/2017,9119463,"665,872.88",JUAN GAVIRIA RESTREPO,Rental Payments - non residential
FCO,FCO,01/04/2017,9119542,"700,348.98",GOVERNORS OFFICE CAPITAL FUNDS,Programme Spend (Oracle Projects Control Account)
FCO,FCO,01/04/2017,9119244,"1,921,550.08",ADAM SMITH INTERNATIONAL,Programme Spend (Oracle Projects Control Account)
FCO,FCO,01/04/2017,9121041,"26,006.23",INSTITUTO DE GESTAO FINANCEIRA DA SEGURANCA SOCIAL,Multiple Accounts
FCO,FCO,01/04/2017,9120720,"29,677.40",HARIS ENTERPRISES PVT LTD,Local Guards
FCO,FCO,01/04/2017,9120830,"31,700.00",KAINOS SOFTWARE LTD,Information Systems Implementation
FCO,FCO,01/04/2017,9120857,"31,800.00",AGILE BYTE LIMITED,IT/IS Consultancy
FCO,FCO,01/04/2017,9121118,"33,040.46",THE ROYAL BANK OF SCOTLAND,Multiple Accounts
FCO,FCO,01/04/2017,9120764,"36,909.79",JUBILEE LIFE INSURANCE,Le Medical Staff Salaries
FCO,FCO,01/04/2017,9120797,"40,927.23",NI HUMAN RIGHTS COMMISSION,Programme Spend (Oracle Projects Control Account)
FCO,FCO,01/04/2017,9120863,"41,850.00",AGILE BYTE LIMITED,IT/IS Consultancy
FCO,FCO,01/04/2017,9120668,"47,839.64",JORDAN ELECTRIC POWER CO,Multiple Accounts
FCO,FCO,01/04/2017,9120637,"49,622.28",COMPUTACENTER UK LTD,IT/IS Consultancy
FCO,FCO,01/04/2017,9120781,"59,565.00",ADBLU INVESTMENTS LIMITED,Recharge Suspense Account (Oracle PA Control Account)
FCO,FCO,01/04/2017,9120817,"60,650.00",AGILE BYTE LIMITED,IT/IS Consultancy
FCO,FCO,01/04/2017,9120939,"68,742.45",THE ROYAL BANK OF SCOTLAND,Children's Concessionary Journeys
FCO,FCO,01/04/2017,9121090,"71,833.00",HMRC HM REVENUE AND CUSTOMS,National Insurance (NI) (Oracle PAY Control Account)
FCO,FCO,01/04/2017,9120978,"78,367.78",ISS FACILITY SERVICES LTD FCO OP - POE,Multiple Accounts
FCO,FCO,01/04/2017,9120855,"96,067.16",SEGURIDAD SOCIAL,Multiple Accounts
FCO,FCO,01/04/2017,9120653,"115,130.00",TRANSNATIONAL CRISIS PROJECT,Programme Spend (Oracle Projects Control Account)
FCO,FCO,01/04/2017,9120977,"123,754.49",ISS FACILITY SERVICES LTD FCO OP - POE,Multiple Accounts
FCO,FCO,01/04/2017,9120928,"319,355.87",CABINET OFFICE,Early Retirement Costs (Pre VES)
FCO,FCO,01/04/2017,9121004,"3,166,879.01",HMRC HM REVENUE AND CUSTOMS,Multiple Accounts
FCO,FCO,01/04/2017,9122299,"-454,804.86",GILBERT ASH LIMITED,Assets Under Construction (Oracle PA Control Account)
FCO,FCO,01/04/2017,9122130,"25,412.92",IESCO,Multiple Accounts
FCO,FCO,01/04/2017,9121925,"25,489.50",ACCOMODATION PROVIDER,Rental Payments - residential
FCO,FCO,01/04/2017,9122239,"28,039.69",SCHOOL,Multiple Accounts
FCO,FCO,01/04/2017,9122000,"28,289.28",G4S SECURITY SERIVICES GHANA LTD,Local Guards
FCO,FCO,01/04/2017,9122227,"28,708.65",SCHOOL,Multiple Accounts
FCO,FCO,01/04/2017,9122080,"30,074.80",DX NETWORK SERVICES,Postal Services
FCO,FCO,01/04/2017,9121892,"31,634.57",BHC INDIA STAFF PROVIDENT FUND,Multiple Accounts
FCO,FCO,01/04/2017,9122112,"32,241.94",CARBON LIMITING TECHNOLOGIES,Programme Spend (Oracle Projects Control Account)
FCO,FCO,01/04/2017,9122205,"34,200.87",SCHOOL,Multiple Accounts
FCO,FCO,01/04/2017,9121980,"34,393.61",SCHOOL,Schooling for Children at Post
FCO,FCO,01/04/2017,9122041,"34,502.00",UNIVERSITY OF BRADFORD,Programme Spend (Oracle Projects Control Account)
FCO,FCO,01/04/2017,9122357,"35,948.00",CROWN AGENTS BANK,Programme Spend (Oracle Projects Control Account)
FCO,FCO,01/04/2017,9122014,"36,687.90",AL BULOOGE GENERAL TRADING CO.W.L.L,Rental Payments - residential
FCO,FCO,01/04/2017,9122257,"41,588.31",STUDIO EGA SRL,Multiple Accounts
FCO,FCO,01/04/2017,9122124,"41,892.13",CHINESE ACADEMY OF INTERNATIONAL TRADE AND ECONOMIC COOPERATION,Programme Spend (Oracle Projects Control Account)
FCO,FCO,01/04/2017,9122020,"43,148.69",HANDICAP INTERNATIONAL UK,Programme Spend (Oracle Projects Control Account)
FCO,FCO,01/04/2017,9122067,"45,213.63",COUNCIL ON ENERGY ENVIRONMENT AND WATER,Programme Spend (Oracle Projects Control Account)
FCO,FCO,01/04/2017,9122028,"46,000.00",DFID DEPT INTERNATIONAL DEVELOPMENT,Programme Spend (Oracle Projects Control Account)
FCO,FCO,01/04/2017,9122274,"47,743.93",COMPUTACENTER UK LTD,IT/IS Consultancy
FCO,FCO,01/04/2017,9122220,"50,759.04",LIAISON TANZANIA LIMITED,Le Medical Staff Salaries
FCO,FCO,01/04/2017,9122104,"70,945.44",INTERNEWS EUROPE,Programme Spend (Oracle Projects Control Account)
FCO,FCO,01/04/2017,9122168,"74,899.23",STRATAGEM CONSULTING,Programme Spend (Oracle Projects Control Account)
FCO,FCO,01/04/2017,9122144,"75,000.00",LAW ENFORCEMENT INTERNATIONAL LTD,Programme Spend (Oracle Projects Control Account)
FCO,FCO,01/04/2017,9122197,"75,860.00",DELOITTE CONSULTING LLP,Programme Spend (Oracle Projects Control Account)
FCO,FCO,01/04/2017,9122195,"78,486.25",MINIMAL RISK CONSULTANCY LTD,UK Guarding Contracts Overseas
FCO,FCO,01/04/2017,9122008,"78,861.66",GLOBAL LUXURY IMPORTS LIMITED,Recharge Suspense Account (Oracle PA Control Account)
FCO,FCO,01/04/2017,9122326,"83,208.00",COMPUTACENTER UK LTD,IT/IS Consultancy
FCO,FCO,01/04/2017,9122023,"93,223.25",EDENRED,Consolidated Volunteer Contribution
FCO,FCO,01/04/2017,9122177,"124,004.00",DANISH DEMINING GROUP,Programme Spend (Oracle Projects Control Account)
FCO,FCO,01/04/2017,9122511,"387,507.96",THE ROYAL BANK OF SCOTLAND,Multiple Accounts
FCO,FCO,01/04/2017,9122498,"454,804.86",GILBERT ASH LIMITED,Assets Under Construction (Oracle PA Control Account)
FCO,FCO,01/04/2017,9122278,"715,501.30",COMPUTACENTER UK LTD,IT/IS Consultancy
FCO,FCO,01/04/2017,9122045,"1,756,212.30",G4S RISK MANAGEMENT LTD,UK Guarding Contracts Overseas
FCO,FCO,01/04/2017,9123483,"25,740.00",CONFEDERATION OF INDIAN INDUSTRY,Programme Spend (Oracle Projects Control Account)
FCO,FCO,01/04/2017,9123938,"27,456.93",ISS FACILITY SERVICES LTD FCO OP,Multiple Accounts
FCO,FCO,01/04/2017,9123946,"28,605.18",ISS FACILITY SERVICES LTD FCO OP,Multiple Accounts
FCO,FCO,01/04/2017,9124059,"33,656.95",STEPHANIE BUNKER AND SHAHRUKH RAFI KHAN,Recharge Suspense Account (Oracle PA Control Account)
FCO,FCO,01/04/2017,9123375,"33,750.00",NGU FOUNDATION FOR SUPPORT OF REFORMS IN UKRAINE,Recharge Suspense Account (Oracle PA Control Account)
FCO,FCO,01/04/2017,9123901,"34,401.60",ISS FACILITY SERVICES LTD FCO OP,Multiple Accounts
FCO,FCO,01/04/2017,9123524,"34,804.52",FCO SERVICES,FM Interserve Works
FCO,FCO,01/04/2017,9123937,"37,057.43",ISS FACILITY SERVICES LTD FCO OP,Multiple Accounts
FCO,FCO,01/04/2017,9123718,"40,595.32",OVERSEAS SUPPLY SERVICES LTD,UK Guarding Contracts Overseas
FCO,FCO,01/04/2017,9123734,"43,614.49",JONES LANG LASALLE,Multiple Accounts
FCO,FCO,01/04/2017,9123921,"45,067.64",ISS FACILITY SERVICES LTD FCO OP,Multiple Accounts
FCO,FCO,01/04/2017,9123651,"55,877.00",UNITED NATIONS ASSOCIATION (UNA) UK,Programme Spend (Oracle Projects Control Account)
FCO,FCO,01/04/2017,9123776,"64,345.16",VOYA FINANCIAL,Multiple Accounts
FCO,FCO,01/04/2017,9123299,"74,730.18",PUBLIC PRIVATE PARTNERSHIP CENTER OF THE PHILIPPINES,Programme Spend (Oracle Projects Control Account)
FCO,FCO,01/04/2017,9123686,"98,000.00",ANR MINING AND CONSTRUCTION,Rental Payments - residential
FCO,FCO,01/04/2017,9123496,"100,484.90",PEACEFUL CHANGE INITIATIVE,Programme Spend (Oracle Projects Control Account)
FCO,FCO,01/04/2017,9123650,"122,158.71",ARK GROUP DMCC,Programme Spend (Oracle Projects Control Account)
FCO,FCO,01/04/2017,9123709,"179,062.03",OVERSEAS SUPPLY SERVICES LTD,Estates Management Services
FCO,FCO,01/04/2017,9123813,"360,755.22",ADAM SMITH INTERNATIONAL,Programme Spend (Oracle Projects Control Account)
FCO,FCO,01/04/2017,9123808,"361,020.35",ADAM SMITH INTERNATIONAL,Programme Spend (Oracle Projects Control Account)
FCO,FCO,01/04/2017,9123815,"730,780.61",ADAM SMITH INTERNATIONAL,Programme Spend (Oracle Projects Control Account)
FCO,FCO,01/04/2017,9123643,"2,304,424.75",MAYDAY RESCUE,Programme Spend (Oracle Projects Control Account)
FCO,FCO,01/04/2017,9124802,"30,346.36",STEM CAMBODIA,Programme Spend (Oracle Projects Control Account)
FCO,FCO,01/04/2017,9124890,"30,899.82",SCHOOL,Multiple Accounts
FCO,FCO,01/04/2017,9124928,"31,868.10",AKTIS STRATEGY,Programme Spend (Oracle Projects Control Account)
FCO,FCO,01/04/2017,9125502,"33,221.18",ONE SANSOME PROPERTY LLC,Multiple Accounts
FCO,FCO,01/04/2017,9125361,"34,038.89",BRICKELL BAY TOWER LTD,Multiple Accounts
FCO,FCO,01/04/2017,9125062,"39,439.34",LUIS FELIPE CARDONA PARRA,Assets Under Construction (Oracle PA Control Account)
FCO,FCO,01/04/2017,9124893,"39,671.00",CITY OF WESTMINSTER,Rates Taxes Non-Residential
FCO,FCO,01/04/2017,9125058,"43,560.00",LINK 51 (STORAGE PRODUCTS) LTD,Assets Under Construction (Oracle PA Control Account)
FCO,FCO,01/04/2017,9125226,"46,305.00",G4S SECURITY SERVICES KENYA LTD,UK Guarding Contracts Overseas
FCO,FCO,01/04/2017,9125233,"46,305.00",G4S SECURITY SERVICES KENYA LTD,UK Guarding Contracts Overseas
FCO,FCO,01/04/2017,9125218,"50,938.92",SERVEST MULTI SERVICE GROUP,Manned Guarding Services
FCO,FCO,01/04/2017,9125296,"53,985.00",WOMEN FOR WOMEN INTERNATIONAL,Programme Spend (Oracle Projects Control Account)
FCO,FCO,01/04/2017,9124898,"55,317.65",INTEGRITY RESEARCH AND CONSULTANCY LTD,Programme Spend (Oracle Projects Control Account)
FCO,FCO,01/04/2017,9124867,"57,496.39",INTERNATIONAL GOVERNANCE AND RISK LIMITED GOVRISK,Programme Spend (Oracle Projects Control Account)
FCO,FCO,01/04/2017,9125055,"65,797.56",STABILISATION NETWORK,Programme Spend (Oracle Projects Control Account)
FCO,FCO,01/04/2017,9124954,"76,798.89",TAKAFUL INSURANCE COMPANY,Subsidy To Local Medical Schemes
FCO,FCO,01/04/2017,9124979,"77,474.44",ADP,Multiple Accounts
FCO,FCO,01/04/2017,9125126,"116,421.00",STUART HARRISON UK,Programme Spend (Oracle Projects Control Account)
FCO,FCO,01/04/2017,9124907,"131,999.00",MILTON KEYNES COUNCIL,Rates Taxes Non-Residential
FCO,FCO,01/04/2017,9125221,"164,819.97",SERVEST MULTI SERVICE GROUP,Manned Guarding Services
FCO,FCO,01/04/2017,9125024,"165,585.73",TORRE ESPACIO CASTELLANA SAU,Rental Payments - non residential
FCO,FCO,01/04/2017,9125050,"194,006.87",AKTIS STRATEGY,Programme Spend (Oracle Projects Control Account)
FCO,FCO,01/04/2017,9124952,"203,877.00",OECD,Programme Spend (Oracle Projects Control Account)
FCO,FCO,01/04/2017,9125504,"247,490.50",PLAZA TOWER LLC,Multiple Accounts
FCO,FCO,01/04/2017,9125204,"302,947.79",GOVERNMENT LEGAL DEPARTMENT,Legal Charges
FCO,FCO,01/04/2017,9125010,"327,825.51",BAE SYSTEMS APPLIED INTELLIGENCE LIMITED,Specialist Contractors
FCO,FCO,01/04/2017,9124889,"426,796.00",CITY OF WESTMINSTER,Rates Taxes Non-Residential
FCO,FCO,01/04/2017,9126512,"-28,800.00",BIP SOLUTIONS,Programme Spend (Oracle Projects Control Account)
FCO,FCO,01/04/2017,9126030,"25,577.63",ACCOMODATION PROVIDER,Rental Payments - residential
FCO,FCO,01/04/2017,9126024,"27,564.93",ACCOMODATION PROVIDER,Rental Payments - residential
FCO,FCO,01/04/2017,9126268,"28,022.34",UNIVERSITY OF NOTTINGHAM,Programme Spend (Oracle Projects Control Account)
FCO,FCO,01/04/2017,9126419,"29,015.71",APARNA KUTHIALA,Multiple Accounts
FCO,FCO,01/04/2017,9126561,"29,920.00",LONDON SCHOOL OF ECONOMICS AND POLITICAL SCIENCE,Specialist Training (Devolved)
FCO,FCO,01/04/2017,9126501,"31,558.50",WORLDREACH SOFTWARE CORPORATION,Information Systems Implementation
FCO,FCO,01/04/2017,9126263,"32,568.24",ACCOMODATION PROVIDER,Rental Payments - residential
FCO,FCO,01/04/2017,9126440,"34,598.00",INSTITUTE FOR WAR AND PEACE REPORTING IWPR,Programme Spend (Oracle Projects Control Account)
FCO,FCO,01/04/2017,9126269,"37,508.60",CONTRIBUTORY PROVIDENT FUND,Multiple Accounts
FCO,FCO,01/04/2017,9126272,"49,320.00",AXIOM INTERNATIONAL LTD,Programme Spend (Oracle Projects Control Account)
FCO,FCO,01/04/2017,9126430,"65,686.60",CAPGEMINI UK PLC,Specialist Contractors
FCO,FCO,01/04/2017,9126028,"66,012.72",Bankers Assurance SAL,Multiple Accounts
FCO,FCO,01/04/2017,9126271,"80,714.00",AXIOM INTERNATIONAL LTD,Programme Spend (Oracle Projects Control Account)
FCO,FCO,01/04/2017,9126332,"126,114.76",KOPUN I KOPUN,Local Staff Terminal Benefits
FCO,FCO,01/04/2017,9126436,"128,006.00",INSTITUTE FOR WAR AND PEACE REPORTING IWPR,Programme Spend (Oracle Projects Control Account)
FCO,FCO,01/04/2017,9126551,"156,294.00",COMPUTACENTER UK LTD,IT/IS Consultancy
FCO,FCO,01/04/2017,9126444,"286,961.00",INSTITUTE FOR WAR AND PEACE REPORTING IWPR,Programme Spend (Oracle Projects Control Account)
FCO,FCO,01/04/2017,9126366,"300,050.00",KIRINTEC LTD,Recharge Suspense Account (Oracle PA Control Account)
FCO,FCO,01/04/2017,9126293,"679,338.00",SENATOR INTERNATIONAL LTD,Assets Under Construction (Oracle PA Control Account)
FCO,FCO,01/04/2017,9127624,"34,529.80",ISRAEL RATHAUS,Recharge Suspense Account (Oracle PA Control Account)
FCO,FCO,01/04/2017,9127649,"42,302.50",ABU DHABI COMMERCIAL PROPERTIES,Recharge Suspense Account (Oracle PA Control Account)
FCO,FCO,01/04/2017,9127614,"55,424.04",HARIS ENTERPRISES PVT LTD,Local Guards
FCO,FCO,01/04/2017,9128500,"-123,653.50",ISS FACILITY SERVICES LTD FCO OP,SLA Performance Deductions
FCO,FCO,01/04/2017,9128502,"-123,653.50",ISS FACILITY SERVICES LTD FCO OP,SLA Performance Deductions
FCO,FCO,01/04/2017,9128465,"25,648.78",COMPUTACENTER UK LTD,Information Systems Maintenance
FCO,FCO,01/04/2017,9128053,"26,752.48",GLOBAL LUXURY IMPORTS LIMITED,Recharge Suspense Account (Oracle PA Control Account)
FCO,FCO,01/04/2017,9128132,"28,289.28",G4S SECURITY SERIVICES GHANA LTD,Local Guards
FCO,FCO,01/04/2017,9128130,"31,050.31",CXA INSURANCE BROKERS SINGAPORE PTE LTD,Subsidy To Local Medical Schemes
FCO,FCO,01/04/2017,9128272,"38,529.69",THE QUEEN ELIZABETH II CONFERENCE CENTRE,Inward visits to the UK and UK Conferences
FCO,FCO,01/04/2017,9128464,"43,247.46",COMPUTACENTER UK LTD,IT/IS Consultancy
FCO,FCO,01/04/2017,9128473,"46,590.05",SECURITY SERVICES GROUP,Misc Security Payments
FCO,FCO,01/04/2017,9128205,"50,000.00",AECOM,Programme Spend (Oracle Projects Control Account)
FCO,FCO,01/04/2017,9128228,"62,504.65",PUBLIC INTERNATIONAL LAW AND POLICY GROUP,Programme Spend (Oracle Projects Control Account)
FCO,FCO,01/04/2017,9128461,"70,531.39",COMPUTACENTER UK LTD,Assets Under Construction (Oracle PA Control Account)
FCO,FCO,01/04/2017,9128463,"83,266.75",COMPUTACENTER UK LTD,Assets Under Construction (Oracle PA Control Account)
FCO,FCO,01/04/2017,9128528,"119,126.17",KPMG FIDUCIAIRE,Multiple Accounts
FCO,FCO,01/04/2017,9128394,"217,990.87",URSSAF,Multiple Accounts
FCO,FCO,01/04/2017,9128529,"245,369.36",845 THIRD LP,Multiple Accounts
FCO,FCO,01/04/2017,9128188,"355,023.26",STRUCTURE TONE LLC,Assets Under Construction (Oracle PA Control Account)
FCO,FCO,01/04/2017,9129432,"-36,629.96",ZAK OTHER DEBTORS,Recharge Suspense Account (Oracle PA Control Account)
FCO,FCO,01/04/2017,9129394,"30,000.00",FCO SERVICES,Information Systems Implementation
FCO,FCO,01/04/2017,9129448,"34,233.39",FCO SERVICES,Vehicle Hire
FCO,FCO,01/04/2017,9129416,"35,050.00",KPMG LLP,Training Courses
FCO,FCO,01/04/2017,9129454,"36,825.00",FCO SERVICES,Vehicles Miscellaneous
FCO,FCO,01/04/2017,9129418,"37,938.69",KOIZA INTERNATIONAL LTD,Property Maintenance Overseas Residential
FCO,FCO,01/04/2017,9129428,"40,134.15",MEEDAN,Programme Spend (Oracle Projects Control Account)
FCO,FCO,01/04/2017,9129441,"40,389.50",PECHTER POLLS,Programme Spend (Oracle Projects Control Account)
FCO,FCO,01/04/2017,9129427,"42,484.00",IIZUKA,Information Systems Implementation
FCO,FCO,01/04/2017,9129100,"44,004.01",WALSONS SERVICES PVT LTD,Multiple Accounts
FCO,FCO,01/04/2017,9129467,"65,725.48",COMPUTACENTER UK LTD,Multiple Accounts
FCO,FCO,01/04/2017,9129142,"67,924.04",NAJMI SONS AND BROTHERS LTD,Fuel Oil Residential
FCO,FCO,01/04/2017,9129400,"77,475.83",FCO SERVICES,Despatch Charges
FCO,FCO,01/04/2017,9129408,"78,463.50",FCO SERVICES,Despatch Charges
FCO,FCO,01/04/2017,9129433,"84,968.00",IIZUKA,Information Systems Implementation
FCO,FCO,01/04/2017,9129422,"114,109.06",NONVIOLENT PEACEFORCE,Programme Spend (Oracle Projects Control Account)
FCO,FCO,01/04/2017,9129401,"170,641.89",BRIAN JOHNSTON AND CO LTD,Vehicle Insurance
